bitfinex/quotes_ETHUSD_20241231
["timestamp","ask_amount","ask_price","bid_price","bid_amount"]
[1735665004510,0.7967,3410.8,3410.1,2.96827774]
[1735665005653,0.7967,3410.8,3410.2,2.93236]
[1735665005842,0.7967,3411.0,3410.3,0.8303]
[1735665006064,0.7967,3411.0,3410.3,0.86609538]
[1735665006561,0.7967,3411.0,3410.3,3.79837538]
[1735665007132,0.7967,3411.0,3410.3,0.86609538]
[1735665007331,0.15289457,3411.2,3410.6,2.93202]
[1735665007536,0.15289457,3411.2,3410.7,0.0356644]
[1735665010067,0.15289457,3411.2,3410.7,2.9675944]
[1735665010589,0.15289457,3411.2,3410.8,5.7514]
[1735665010801,0.15289457,3411.2,3411.0,2.93163]
[1735665010963,0.15289457,3411.2,3411.1,3.80306737]
[1735665011297,0.15289457,3411.2,3411.1,0.90490286]
[1735665011453,0.15289457,3411.2,3411.1,0.03343549]
[1735665011881,0.15289457,3411.2,3410.5,3.68348]
[1735665012067,0.15289457,3411.2,3411.1,0.03343549]
[1735665012290,0.15289457,3411.2,3409.9,3.68399]
[1735665012291,2.93169,3411.0,3409.9,3.68399]
[1735665012499,0.7771,3410.9,3409.9,0.7514]
[1735665012671,0.15289457,3411.2,3409.9,0.7514]
[1735665012672,0.7771,3410.7,3409.9,0.7514]
[1735665012854,0.7771,3410.7,3410.2,2.93235]
[1735665013204,0.7771,3411.1,3410.6,2.93201]
[1735665013407,0.7771,3411.1,3410.7,2.93192]
[1735665013690,0.15289457,3411.2,3410.7,2.93187]
[1735665015670,0.15289457,3411.2,3410.8,2.93185]
[1735665015890,0.15289457,3411.2,3410.9,0.293185]
[1735665016089,0.15289457,3411.2,3410.8,2.93185]
[1735665016290,0.15289457,3411.2,3410.9,2.93176]
[1735665016472,0.15289457,3411.2,3410.7,2.93191]
[1735665017056,0.15289457,3411.2,3410.5,5.93208]
[1735665017262,0.15289457,3411.2,3410.5,3.0]
[1735665017498,0.15289457,3411.2,3411.0,2.9316]
[1735665017659,0.15289457,3411.2,3411.1,5.49098]
[1735665018011,0.15289457,3411.2,3411.1,6.24201]
[1735665018160,0.15289457,3411.2,3411.1,4.10907]
[1735665018362,0.15289457,3411.2,3411.1,2.9316]
[1735665018602,0.15289457,3411.2,3411.1,3.910721]
[1735665018797,0.59534521,3412.3,3411.4,0.55]
[1735665018798,0.7771,3412.3,3411.4,0.55]
[1735665018983,0.1529248,3412.0,3411.9,2.9309]
[1735665019201,0.1529248,3412.0,3411.9,6.32506]
[1735665019378,0.1529248,3412.0,3411.9,6.41967]
[1735665019564,0.1529248,3412.0,3411.9,9.47821149]
[1735665019765,1.83261396,3412.5,3412.0,0.55]
[1735665020078,0.15296584,3412.6,3412.2,2.93057]
[1735665020274,0.15296584,3412.6,3412.3,2.93053]
[1735665022982,0.15296584,3412.6,3412.0,3.55]
[1735665023281,0.15296584,3412.6,3412.2,2.93061]
[1735665023676,0.15296584,3412.6,3412.1,1.36037615]
[1735665024066,0.15296584,3412.6,3412.2,3.0]
[1735665024577,0.7771,3412.5,3411.1,2.20400791]
[1735665024770,0.7771,3412.5,3411.7,0.04307436]
[1735665024971,1.16312158,3412.5,3411.7,0.04307436]
[1735665025594,1.16312158,3412.5,3411.8,2.93099]
[1735665025967,1.16312158,3412.5,3411.9,0.03906927]
[1735665026606,0.7838,3412.4,3411.9,0.03906927]
[1735665026982,0.7838,3412.4,3411.3,2.93138]
[1735665027182,0.7838,3412.2,3411.4,2.96756493]
[1735665027377,0.7838,3412.2,3411.6,2.93116]
[1735665027577,0.7838,3412.2,3411.4,2.86592538]
[1735665027578,0.7838,3412.2,3411.7,0.03612704]
[1735665027889,0.7838,3412.2,3411.4,5.76103045]
[1735665028204,0.7838,3412.2,3411.4,2.82970045]
[1735665028408,0.7838,3412.2,3411.6,2.93116]
[1735665028707,0.7838,3412.2,3411.7,2.93106]
[1735665028870,0.7838,3412.2,3411.7,2.96741055]
[1735665029270,0.7838,3412.5,3411.9,2.9309]
[1735665029534,0.7838,3412.5,3411.7,3.5213121]
[1735665029667,0.7838,3412.5,3412.1,2.93073]
[1735665030167,0.7838,3412.5,3412.2,0.03626197]
[1735665030376,0.15296584,3412.6,3412.3,2.41297]
[1735665030590,0.15296584,3412.6,3412.4,0.0361802]
[1735665030794,0.15296584,3412.6,3412.5,4.66109]
[1735665030998,0.15296584,3412.6,3412.5,7.62762931]
[1735665031310,0.15296584,3412.6,3412.5,7.74971931]
[1735665031779,2.92932,3413.8,3412.5,5.50968931]
[1735665031985,0.7838,3413.7,3412.7,3.58520045]
[1735665032209,0.15279174,3413.2,3412.7,3.58520045]
[1735665032509,0.7838,3413.7,3413.2,2.92977]
[1735665032709,0.15277323,3413.4,3413.3,2.82970045]
[1735665032915,0.15277323,3413.4,3413.3,0.05832071]
[1735665033087,0.15277323,3413.4,3413.3,2.84432071]
[1735665033321,0.15277323,3413.4,3413.3,3.36340907]
[1735665033497,0.15277323,3413.4,3413.3,0.63572978]
[1735665033697,0.15277323,3413.4,3413.3,3.56543978]
[1735665034122,0.15277323,3413.4,3413.3,6.47020978]
[1735665034622,0.15277323,3413.4,3413.3,8.56543978]
[1735665034927,0.15277323,3413.4,3413.3,3.56543978]
[1735665035107,0.15277323,3413.4,3413.3,6.59983978]
[1735665035308,0.15277323,3413.4,3413.3,6.35243978]
[1735665035664,0.15277323,3413.4,3413.3,7.10793978]
[1735665037444,0.7838,3414.0,3413.4,3.0]
[1735665037597,0.7838,3414.0,3413.5,0.92524302]
[1735665037794,0.7838,3414.0,3413.6,0.053909]
[1735665039000,0.7838,3414.0,3413.1,3.0]
[1735665039339,0.7838,3414.0,3413.2,0.05404329]
[1735665040737,3.71291,3414.0,3413.2,0.05404329]
[1735665041042,0.7624,3413.8,3413.2,0.05404329]
[1735665041245,0.7624,3413.3,3413.2,0.05404329]
[1735665041420,2.92981,3413.2,3412.1,2.93069]
[1735665041826,0.7624,3413.3,3412.2,0.04683084]
[1735665042092,0.7624,3413.3,3412.4,3.0]
[1735665042377,0.7624,3413.3,3412.4,5.9304]
[1735665042513,0.7624,3413.3,3412.6,2.9303]
[1735665042875,0.7624,3413.3,3412.7,0.04524041]
[1735665043966,0.7624,3413.3,3412.8,2.93014]
[1735665044110,0.7624,3413.3,3412.8,3.24336816]
[1735665044308,0.7624,3413.9,3413.2,2.92979]
[1735665044508,0.7624,3413.9,3412.9,0.04517324]
[1735665044724,0.7624,3413.5,3413.3,0.04503893]
[1735665044978,2.92956,3413.5,3412.5,2.9304]
[1735665045189,0.7624,3413.4,3412.5,3.65514436]
[1735665045481,0.7624,3413.4,3412.6,0.045274]
[1735665046548,0.7624,3413.2,3412.6,0.045274]
[1735665046861,0.7624,3413.2,3412.7,0.04385594]
[1735665047241,0.7624,3413.2,3412.4,2.93044]
[1735665047441,0.7624,3413.2,3412.8,0.04426511]
[1735665047643,0.7624,3413.2,3412.5,0.94295836]
[1735665047840,0.7624,3413.2,3412.9,0.04423153]
[1735665048157,0.7624,3413.2,3412.4,2.93044]
[1735665048374,0.7624,3413.2,3413.0,0.04419795]
[1735665048540,0.7624,3413.2,3412.6,2.93028]
[1735665048747,0.7624,3413.2,3413.1,0.04416437]
[1735665049226,0.7624,3413.2,3412.4,2.93047]
[1735665049430,0.7624,3413.2,3413.1,0.04416437]
[1735665049633,0.7624,3413.2,3412.7,2.93016]
[1735665049851,0.7624,3413.2,3413.1,0.04416437]
[1735665050070,0.7624,3413.2,3412.7,2.93016]
[1735665050271,0.7624,3413.2,3413.1,0.04416437]
[1735665050480,0.7624,3413.2,3412.5,2.93037]
[1735665050682,0.7624,3413.2,3412.3,6.42963358]
[1735665050848,0.7624,3413.2,3412.6,0.04433228]
[1735665051046,0.7624,3413.2,3412.4,5.93044]
[1735665051359,0.7624,3413.7,3412.8,2.93012]
[1735665051530,0.7624,3413.4,3412.4,7.60278881]
[1735665051731,0.7624,3413.4,3412.9,0.04415882]
[1735665051925,0.7624,3413.4,3412.5,2.93038]
[1735665052257,0.7624,3413.4,3412.6,2.97455958]
[1735665052413,1.131597,3413.4,3412.6,0.04425958]
[1735665052802,1.131597,3413.4,3412.5,2.9304]
[1735665053001,1.131597,3413.4,3412.6,0.04425958]
[1735665053599,1.131597,3413.4,3412.6,2.97456958]
[1735665053844,0.7624,3413.4,3412.6,0.04425958]
[1735665054230,0.7624,3413.4,3412.8,2.93011]
[1735665054433,0.7624,3413.4,3412.9,2.93]
[1735665054601,0.7624,3413.4,3413.1,2.92986]
[1735665054800,0.7624,3413.4,3413.2,0.04425636]
[1735665055418,0.7624,3413.4,3413.0,2.92989]
[1735665055614,0.7624,3413.4,3413.3,0.04422278]
[1735665055820,0.7624,3413.4,3413.0,2.92989]
[1735665056015,0.7624,3413.4,3413.3,0.04422278]
[1735665056220,0.7624,3413.4,3412.8,2.93011]
[1735665056422,0.7624,3413.4,3413.3,0.04410382]
[1735665056655,0.7624,3413.4,3412.8,3.79912904]
[1735665056656,0.7624,3413.4,3412.6,2.93029]
[1735665056823,0.7624,3413.4,3413.3,0.04410382]
[1735665057030,0.7624,3413.4,3412.6,2.93029]
[1735665057417,0.7624,3413.4,3412.7,0.0443053]
[1735665058324,0.7624,3413.4,3412.7,1.00652488]
[1735665058745,0.7624,3413.4,3412.8,2.93013]
[1735665059143,0.7624,3413.4,3412.9,0.04423813]
[1735665062565,0.7624,3413.4,3412.5,3.0]
[1735665062741,0.7624,3413.4,3413.0,0.04427725]
[1735665062938,0.7739,3413.3,3412.4,2.93041]
[1735665063151,0.7739,3413.2,3413.1,0.04424367]
[1735665063354,0.7739,3413.2,3412.1,6.61770045]
[1735665063355,1.144262,3413.2,3412.1,3.61770045]
[1735665063567,1.144262,3413.2,3413.1,0.0442635]
[1735665063771,1.144262,3413.2,3412.4,2.93045]
[1735665063979,0.7739,3413.2,3412.2,3.0]
[1735665064179,0.7739,3413.2,3412.6,2.93031]
[1735665064340,0.7739,3413.2,3412.7,2.93015]
[1735665064545,0.7739,3413.2,3412.7,0.04439783]
[1735665065084,0.7739,3413.2,3412.8,2.97454355]
[1735665065279,0.7739,3413.2,3412.9,2.93005]
[1735665065457,0.7739,3413.6,3412.9,0.04447607]
[1735665065652,0.7739,3413.6,3413.1,2.92985]
[1735665066067,0.7739,3413.6,3413.2,0.04437533]
[1735665066279,0.7739,3413.6,3413.2,2.92977]
[1735665066587,0.15279264,3413.7,3413.4,2.92961]
[1735665066893,0.15279264,3413.7,3413.5,0.04427461]
[1735665067229,0.7739,3414.0,3413.5,0.04427461]
[1735665067386,0.7739,3414.0,3413.5,2.97381461]
[1735665067683,0.7739,3414.0,3413.5,0.04427461]
[1735665067885,0.7739,3414.0,3413.4,2.92961]
[1735665068061,0.7739,3414.0,3413.6,0.04395684]
[1735665068381,0.7739,3414.0,3413.4,2.92961]
[1735665068552,0.7739,3414.0,3413.2,1.080977]
[1735665068553,0.7739,3414.0,3413.7,0.04392327]
[1735665068753,0.7739,3414.0,3413.2,2.92976]
[1735665069085,2.92928,3413.8,3412.7,6.54784045]
[1735665069386,0.7739,3413.7,3413.3,0.04405756]
[1735665069679,0.7739,3413.7,3413.1,2.92986]
[1735665069680,0.7739,3413.7,3413.4,0.04365397]
[1735665069886,0.7739,3413.7,3413.2,2.92976]
[1735665070042,0.7739,3413.7,3413.5,0.0436204]
[1735665070245,0.7739,3413.7,3413.2,2.92976]
[1735665070445,0.7739,3413.7,3413.6,0.04358683]
[1735665070758,0.7739,3413.7,3413.2,3.222736]
[1735665070759,0.7739,3413.7,3413.2,2.92976]
[1735665071003,0.7739,3413.7,3413.6,0.04358683]
[1735665071173,0.7581,3413.4,3412.2,1.83733037]
[1735665071357,3.0,3413.9,3412.2,1.83733037]
[1735665071358,0.7581,3413.1,3412.2,1.83733037]
[1735665071565,4.3336032,3413.7,3412.5,0.04112844]
[1735665071781,0.7581,3413.1,3412.5,0.04112844]
[1735665072086,3.688,3413.1,3412.5,0.04112844]
[1735665072293,0.7581,3413.0,3412.0,2.93082]
[1735665072596,3.94578037,3413.6,3412.6,0.04109485]
[1735665072597,0.7581,3412.7,3412.6,0.04109485]
[1735665072741,0.7581,3412.6,3411.8,1.22488691]
[1735665072947,5.76006045,3412.6,3411.8,1.22488691]
[1735665073248,0.7581,3412.5,3411.9,0.04133002]
[1735665073446,0.7581,3412.5,3411.4,1.22488691]
[1735665073665,0.7581,3412.2,3411.4,1.22488691]
[1735665073848,0.7581,3412.2,3411.5,0.04146444]
[1735665074685,0.57920513,3412.1,3411.5,0.04146444]
[1735665074893,0.57920513,3412.1,3411.2,2.93149]
[1735665075082,0.57920513,3412.1,3411.6,0.04017247]
[1735665075247,0.57920513,3412.1,3411.3,0.369079]
[1735665075453,0.57920513,3412.1,3411.7,0.04013886]
[1735665075654,0.57920513,3412.1,3411.3,0.369079]
[1735665075902,0.57920513,3412.1,3411.8,0.04010526]
[1735665076103,0.7581,3412.0,3410.5,4.59939369]
[1735665076400,6.68893,3412.0,3411.9,0.04007166]
[1735665076549,0.57920513,3412.1,3410.5,1.22488691]
[1735665076550,0.7581,3411.8,3410.5,1.22488691]
[1735665076753,0.7581,3411.2,3410.5,1.22488691]
[1735665076981,0.7581,3411.2,3410.6,0.04047136]
[1735665078253,3.68966,3411.2,3410.6,0.04047136]
[1735665078456,2.93161,3411.1,3410.3,0.7593]
[1735665078809,2.93161,3411.1,3410.7,0.04245308]
[1735665078952,0.7581,3411.2,3410.3,0.7593]
[1735665079160,0.7581,3411.2,3410.8,0.04241946]
[1735665079356,0.7581,3411.2,3410.5,2.93207]
[1735665079555,0.7581,3411.2,3410.6,0.369137]
[1735665079755,0.7581,3411.2,3410.6,0.41169645]
[1735665081258,0.7581,3411.2,3410.6,0.04255945]
[1735665081500,0.7581,3411.2,3410.3,0.7593]
[1735665081661,0.7581,3411.2,3410.7,0.04254567]
[1735665081862,0.7581,3411.2,3410.5,2.93208]
[1735665082156,0.7581,3411.2,3410.8,0.04241946]
[1735665082364,0.7581,3411.2,3410.6,2.93201]
[1735665082569,0.7581,3411.5,3410.9,0.04238583]
[1735665082785,0.7581,3411.5,3410.8,0.7593]
[1735665082996,0.7581,3411.5,3410.9,2.93169]
[1735665083215,0.7581,3411.7,3411.1,2.9316]
[1735665083612,0.7581,3411.7,3411.2,0.04228498]
[1735665083786,0.7581,3412.2,3411.2,2.97373498]
[1735665083968,0.7581,3412.2,3411.2,2.93145]
[1735665084164,0.7581,3412.2,3411.3,0.04225136]
[1735665084666,0.7581,3412.2,3411.3,0.80155136]
[1735665084908,0.7581,3412.2,3411.4,0.37330014]
[1735665085213,0.7581,3412.2,3411.4,0.41551789]
[1735665086025,3.68876,3412.2,3411.4,0.41551789]
[1735665086187,3.68876,3412.2,3411.4,0.04221775]
[1735665087501,0.15280615,3412.1,3411.4,0.04221775]
[1735665088210,2.93085,3412.0,3411.4,0.04221775]
[1735665088405,0.15280615,3412.1,3411.4,0.04221775]
[1735665088616,0.15280615,3412.1,3411.0,0.7599]
[1735665088617,0.7728,3411.8,3411.0,0.7599]
[1735665088906,0.7728,3411.8,3411.1,0.66917]
[1735665089104,0.7728,3411.8,3411.1,0.71123733]
[1735665091071,2.93109,3411.7,3411.1,0.04206733]
[1735665091372,2.9312,3411.6,3410.7,0.8028]
[1735665091561,2.9312,3411.6,3411.2,0.04203371]
[1735665091761,2.9312,3411.6,3410.7,0.8028]
[1735665091960,2.9312,3411.6,3411.3,0.0420001]
[1735665092159,3.3016,3411.6,3410.7,0.8028]
[1735665092567,3.3016,3411.6,3410.8,0.04088854]
[1735665093464,3.70383,3411.8,3410.8,0.04088854]
[1735665093862,0.7728,3411.8,3410.8,0.04088854]
[1735665094089,0.7728,3411.8,3410.8,2.97268854]
[1735665095444,0.59682188,3411.6,3410.8,2.97268854]
[1735665096346,0.7728,3411.8,3410.8,2.97268854]
[1735665096577,0.7728,3411.8,3410.9,0.37754885]
[1735665096773,0.7728,3411.8,3410.9,3.30928885]
[1735665096973,0.15280615,3412.1,3411.1,0.8028]
[1735665097175,0.15280615,3412.1,3411.4,0.8028]
[1735665097586,0.15280615,3412.1,3411.5,0.03708675]
[1735665098162,3.08357615,3412.1,3411.5,0.03708675]
[1735665098488,3.82729753,3412.1,3411.6,0.03705314]
[1735665098686,3.82729753,3412.1,3411.1,0.8028]
[1735665098871,3.08357615,3412.1,3411.7,0.03701953]
[1735665099192,3.08357615,3412.1,3411.1,3.73438]
[1735665099393,3.08357615,3412.1,3411.8,0.03698593]
[1735665099683,3.08357615,3412.1,3411.1,3.73438]
[1735665100045,0.15280615,3412.1,3411.1,0.8028]
[1735665100242,2.93094,3411.9,3411.1,0.8028]
[1735665100589,2.93094,3411.9,3411.2,0.03718759]
[1735665100772,0.7992,3411.8,3411.2,0.03718759]
[1735665101285,2.93121,3411.6,3410.9,0.8269]
[1735665101586,2.93121,3411.6,3411.3,0.03513513]
[1735665101792,3.604251,3411.6,3410.9,0.8269]
[1735665102090,3.73028,3411.8,3410.9,0.8269]
[1735665102248,2.93118,3411.6,3411.0,0.03425834]
[1735665104145,3.5206793,3411.6,3411.0,0.03425834]
[1735665106475,3.08849238,3412.0,3411.1,0.8269]
[1735665106476,0.15759238,3412.0,3411.1,0.8269]
[1735665106675,2.93083,3412.0,3411.1,0.86112472]
[1735665107047,3.51144424,3411.9,3411.1,0.86112472]
[1735665112003,0.58050424,3411.9,3411.1,0.86112472]
[1735665114284,3.51144424,3411.9,3411.1,0.86112472]
[1735665115098,0.58050424,3411.9,3411.1,3.79269472]
[1735665116006,0.58050424,3411.9,3411.1,0.86112472]
[1735665116205,0.94691928,3411.9,3411.1,0.86112472]
[1735665116799,0.7716,3411.8,3411.1,0.86112472]
[1735665117308,0.7716,3411.8,3411.1,0.8269]
[1735665117478,0.15308337,3411.7,3411.2,0.03427046]
[1735665117680,0.15308337,3411.7,3411.1,0.8269]
[1735665118017,0.15308337,3411.7,3411.3,0.03423685]
[1735665118223,0.15308337,3411.7,3411.2,0.03427046]
[1735665118523,0.15308337,3411.7,3411.3,0.03423685]
[1735665118724,0.15308337,3411.7,3411.1,0.8269]
[1735665118888,0.15308337,3411.7,3411.4,0.03420323]
[1735665119095,0.15308337,3411.7,3411.1,0.8269]
[1735665119296,0.15308337,3411.7,3411.5,0.03416962]
[1735665119527,1.14647832,3411.7,3411.1,0.8269]
[1735665120127,1.14647832,3411.7,3411.2,0.03427046]
[1735665120428,1.14647832,3411.7,3411.1,0.8269]
[1735665120598,1.14647832,3411.7,3411.3,0.03423685]
[1735665120794,1.14647832,3411.7,3411.2,0.03427046]
[1735665121004,0.15308337,3411.7,3411.1,0.8269]
[1735665121307,0.15308337,3411.7,3411.3,0.03423685]
[1735665121512,0.15308337,3411.7,3411.1,0.8269]
[1735665121723,0.15308337,3411.7,3411.4,0.03420323]
[1735665121929,0.15308337,3411.7,3411.1,0.8269]
[1735665122626,2.93128,3411.5,3411.2,0.03427046]
[1735665122797,3.70303,3411.3,3411.2,0.03427046]
[1735665122996,3.70303,3411.3,3410.5,1.22488691]
[1735665122997,2.93169,3411.0,3410.5,1.22488691]
[1735665123510,2.93169,3411.0,3410.6,0.0324678]
[1735665123511,2.93176,3411.0,3410.6,0.0324678]
[1735665125330,2.93219,3410.5,3409.8,0.8007]
[1735665125483,0.7716,3410.3,3409.8,0.8007]
[1735665125683,0.7716,3410.3,3409.7,1.22488691]
[1735665126002,3.70391,3410.3,3409.7,1.22488691]
[1735665126614,3.70391,3410.3,3409.5,1.83733037]
[1735665126615,3.70391,3410.3,3409.4,0.8007]
[1735665126786,2.93238,3410.2,3409.4,0.8007]
[1735665126987,0.7716,3410.3,3409.4,0.8007]
[1735665127202,0.7716,3410.3,3409.5,0.52619905]
[1735665127433,0.59516144,3409.9,3409.5,0.52619905]
[1735665127640,0.59516144,3409.9,3409.4,0.8007]
[1735665128239,0.59516144,3409.9,3408.8,0.8007]
[1735665128561,2.93291,3409.6,3408.8,0.8007]
[1735665129671,2.933,3409.5,3408.8,0.8007]
[1735665129872,2.93318,3409.3,3408.8,0.8007]
[1735665130171,2.93318,3409.3,3408.9,0.03351005]
[1735665130472,2.933,3409.5,3408.8,0.8007]
[1735665130626,2.93313,3409.4,3408.8,0.8007]
[1735665130822,2.93313,3409.4,3408.9,0.03358282]
[1735665131974,2.93313,3409.4,3408.8,0.8007]
[1735665132762,3.663747,3409.5,3408.9,0.03358282]
[1735665132942,3.663747,3409.5,3408.8,0.8007]
[1735665135471,3.596747,3409.5,3408.8,0.8007]
[1735665135660,0.34970317,3409.4,3408.8,0.8007]
[1735665136059,0.34970317,3409.4,3408.9,0.03358282]
[1735665137178,0.34970317,3409.4,3408.8,0.8007]
[1735665137334,3.0,3409.6,3409.0,0.03388]
[1735665137534,2.93297,3409.6,3408.8,0.8007]
[1735665137735,0.7716,3409.7,3409.1,0.03384635]
[1735665137736,0.15301861,3409.5,3409.1,0.03384635]
[1735665138037,2.93308,3409.4,3408.8,0.8007]
[1735665138263,2.93308,3409.4,3409.2,0.03379945]
[1735665138569,0.38576986,3409.4,3408.8,0.8007]
[1735665138746,3.08605861,3409.5,3409.3,0.0337658]
[1735665138947,3.08605861,3409.5,3408.8,0.8007]
[1735665139157,3.08599861,3409.5,3409.4,0.03373215]
[1735665139336,6.08599861,3409.5,3408.8,0.8007]
[1735665139828,2.93314,3409.4,3408.9,0.03390043]
[1735665140029,2.93341,3409.0,3408.9,0.03390043]
[1735665140235,5.93341,3409.0,3408.9,0.03390043]
[1735665140480,2.9337,3408.7,3408.2,0.8319]
[1735665140974,3.0,3409.0,3408.3,0.0340654]
[1735665141182,2.93357,3408.9,3408.2,0.8319]
[1735665141330,3.88754232,3408.9,3408.4,0.03403173]
[1735665141536,3.88754232,3408.9,3408.2,0.8319]
[1735665141738,3.88754232,3408.9,3408.5,0.03399806]
[1735665141939,2.93358,3408.8,3408.2,0.8319]
[1735665142180,2.93358,3408.8,3408.6,0.03396439]
[1735665142520,0.65822075,3408.8,3408.6,0.03396439]
[1735665142773,5.93344,3409.0,3408.2,0.8319]
[1735665142975,5.93344,3409.0,3408.7,0.03393072]
[1735665143149,5.93344,3409.0,3408.2,0.8319]
[1735665143481,5.93344,3409.0,3408.8,0.03413543]
[1735665143677,0.59203596,3408.8,3408.2,0.8319]
[1735665143862,2.93354,3408.9,3408.2,0.8319]
[1735665144051,2.93354,3408.9,3408.3,0.03398053]
[1735665144566,3.51133555,3408.9,3408.3,0.03398053]
[1735665145566,0.57779555,3408.9,3408.3,0.03398053]
[1735665146058,0.57779555,3408.9,3408.4,0.792]
[1735665146305,0.57779555,3408.9,3408.4,1.16799605]
[1735665146577,3.86651861,3409.5,3408.5,0.03389333]
[1735665146784,0.93351861,3409.5,3408.5,0.03389333]
[1735665147096,2.93333,3409.1,3408.4,0.792]
[1735665147445,2.93333,3409.1,3408.5,0.03389333]
[1735665147648,3.53342767,3409.1,3408.4,0.792]
[1735665147849,3.53342767,3409.1,3408.6,0.03385966]
[1735665148076,3.53342767,3409.1,3408.5,0.03389333]
[1735665148263,3.53342767,3409.1,3408.7,0.033826]
[1735665148597,3.53342767,3409.1,3408.8,0.03379233]
[1735665148763,3.53342767,3409.1,3408.4,0.792]
[1735665148960,3.53342767,3409.1,3408.9,0.03375867]
[1735665149138,3.53342767,3409.1,3408.4,0.792]
[1735665149342,0.60009767,3409.1,3409.0,0.03372501]
[1735665149543,3.86650861,3409.5,3409.0,0.792]
[1735665149738,0.15301861,3409.5,3409.0,0.82572501]
[1735665150013,0.15301861,3409.5,3409.1,0.36490782]
[1735665150408,0.15301861,3409.5,3409.2,0.0336577]
[1735665150705,2.93326,3409.2,3409.0,0.792]
[1735665150866,0.15301861,3409.5,3407.9,2.93435]
[1735665150867,0.15301861,3409.5,3408.3,0.792]
[1735665151070,0.7805,3409.4,3408.3,0.792]
[1735665151377,2.9336,3408.8,3408.3,0.792]
[1735665153033,2.93368,3408.7,3408.3,0.792]
[1735665153337,0.35350865,3408.8,3408.3,0.792]
[1735665153557,0.35350865,3408.8,3407.8,0.13128632]
[1735665153558,0.35350865,3408.8,3407.9,0.792]
[1735665153712,3.35350865,3408.8,3407.9,0.792]
[1735665154536,3.0,3408.6,3407.9,0.792]
[1735665154830,2.93417,3408.2,3407.2,0.792]
[1735665155405,2.93429,3408.0,3407.2,0.792]
[1735665155616,2.93463,3407.6,3407.2,0.792]
[1735665156214,0.7805,3407.8,3407.2,0.792]
[1735665156415,2.9348,3407.4,3406.9,0.792]
[1735665157766,2.93464,3407.6,3406.9,0.792]
[1735665158005,0.15307864,3407.4,3406.9,0.792]
[1735665158467,0.13807864,3407.4,3406.9,0.792]
[1735665159712,0.13807864,3407.4,3406.9,4.099943]
[1735665160010,0.13807864,3407.4,3407.0,0.82591407]
[1735665162763,0.13807864,3407.4,3407.0,0.792]
[1735665162965,0.13807864,3407.4,3407.1,0.03387375]
[1735665165374,0.13807864,3407.4,3407.0,0.792]
[1735665165568,0.13807864,3407.4,3407.2,0.03478682]
[1735665165775,0.13807864,3407.4,3407.0,0.792]
[1735665165973,0.13807864,3407.4,3407.3,0.03475313]
[1735665166327,3.3801365,3407.4,3406.8,0.7953]
[1735665166689,3.3801365,3407.4,3406.9,0.03488792]
[1735665167312,0.4453565,3407.4,3406.9,0.03488792]
[1735665167466,0.13807864,3407.4,3406.9,0.03488792]
[1735665175134,0.13807864,3407.4,3406.9,2.97009792]
[1735665175340,0.13807864,3407.4,3407.0,2.93512]
[1735665175833,0.13807864,3407.4,3407.1,0.03368373]
[1735665176130,0.13807864,3407.4,3406.8,3.73053]
[1735665176312,0.13807864,3407.4,3407.2,0.03365004]
[1735665176493,0.13807864,3407.4,3406.9,3.59053832]
[1735665177041,0.13807864,3407.4,3407.0,0.03371743]
[1735665177339,3.72441,3408.7,3407.7,2.93452]
[1735665177481,0.15308479,3408.1,3407.8,0.7833]
[1735665177707,3.0,3408.5,3407.8,0.8166088]
[1735665178060,0.15310515,3408.1,3407.8,0.8166088]
[1735665179608,0.15310515,3408.1,3407.8,0.0333088]
[1735665179807,0.15310515,3408.1,3407.5,0.7833]
[1735665180040,0.15310515,3408.1,3407.9,0.03283142]
[1735665180224,0.15310515,3408.1,3407.5,0.7833]
[1735665180552,0.15310515,3408.1,3408.0,0.03279774]
[1735665180849,0.15310515,3408.1,3407.6,2.96750558]
[1735665181151,0.15310515,3408.1,3407.6,2.93454]
[1735665181355,0.15310515,3408.1,3407.7,0.03293189]
[1735665182358,0.15310515,3408.1,3407.5,0.7833]
[1735665182557,0.15310515,3408.1,3407.8,0.03285186]
[1735665182745,3.72498,3408.0,3407.3,0.7833]
[1735665183051,3.72498,3408.0,3407.9,0.03281817]
[1735665183252,4.11278852,3408.0,3407.3,0.7833]
[1735665183453,3.72498,3408.0,3407.3,0.7833]
[1735665183653,0.15310515,3408.1,3407.5,0.7833]
[1735665184046,0.15310515,3408.1,3407.6,0.03295895]
[1735665186036,0.15310515,3408.1,3407.6,2.96752895]
[1735665189328,0.15310515,3408.1,3407.6,0.03295895]
[1735665190282,0.15310515,3408.1,3407.7,0.3750949]
[1735665190560,0.15310515,3408.1,3407.8,0.03217653]
[1735665191558,0.15310515,3408.1,3407.5,3.71799]
[1735665191743,0.15310515,3408.1,3407.9,0.03125137]
[1735665191945,0.15310515,3408.1,3407.5,3.71799]
[1735665192255,0.15310515,3408.1,3407.6,0.03040455]
[1735665192923,0.15310515,3408.1,3407.7,2.93447]
[1735665193122,0.15310515,3408.1,3407.8,0.03148538]
[1735665193328,0.15310515,3408.1,3407.6,2.9346]
[1735665193669,0.15310515,3408.1,3407.8,0.7702]
[1735665193973,0.15310515,3408.1,3407.9,0.03886076]
[1735665194269,0.15310515,3408.1,3408.0,3.30861808]
[1735665194471,0.7581,3408.8,3408.0,3.30861808]
[1735665194646,0.15309978,3408.6,3408.0,3.34743292]
[1735665194850,0.15309978,3408.6,3408.2,0.7702]
[1735665195173,0.15309978,3408.6,3408.3,2.86203024]
[1735665195359,0.15309978,3408.6,3408.5,3.70404]
[1735665195979,0.15309978,3408.6,3408.5,3.74615611]
[1735665196472,0.15309978,3408.6,3408.5,0.81231611]
[1735665196674,0.15309978,3408.6,3408.5,0.04211611]
[1735665197327,0.15309978,3408.6,3408.2,2.93408]
[1735665197534,0.15309978,3408.6,3408.3,0.41264513]
[1735665198173,0.15309978,3408.6,3408.3,3.34663513]
[1735665198736,0.15309978,3408.6,3408.4,0.7702]
[1735665198933,0.15309978,3408.6,3408.5,0.04211611]
[1735665199675,0.15309978,3408.6,3408.5,2.97595611]
[1735665199875,0.15309978,3408.6,3408.5,3.66994984]
[1735665200579,0.7581,3409.5,3408.8,2.93354]
[1735665201074,0.1531851,3409.3,3408.9,0.04104047]